bitfinex/quotes_SOLUSD_20250129
["timestamp","ask_amount","ask_price","bid_price","bid_amount"]
[1738182486455,33.86275519,236.92,236.89,1.0]
[1738182486658,33.86275519,237.0,236.84,1.0]
[1738182486975,7.3841,236.99,236.9,1.0]
[1738182487151,20.0,236.96,236.81,2.0]
[1738182487358,20.50196,236.95,236.81,1.0]
[1738182487557,20.50196,236.95,236.79,0.03]
[1738182487965,20.50196,236.95,236.8,1.0]
[1738182488163,33.86275519,236.83,236.8,1.0]
[1738182488372,33.86275519,236.81,236.79,1.03]
[1738182488659,17.933,236.99,236.84,1.0]
[1738182488660,33.86275519,236.85,236.84,1.0]
[1738182488865,35.97375519,236.85,236.79,0.03]
[1738182489043,23.902374,236.8,236.79,0.03]
[1738182489248,23.902374,236.8,236.78,0.0001]
[1738182489249,0.50196,236.79,236.78,0.0001]
[1738182489478,0.37647,236.79,236.78,0.0001]
[1738182489778,33.86275519,236.66,236.65,1.0]
[1738182489986,33.86275519,236.66,236.61,1.0]
[1738182490273,20.0,236.6,236.56,1.0]
[1738182490459,33.86275519,236.57,236.56,1.0]
[1738182491070,20.0,236.54,236.52,0.03]
[1738182491367,20.0,236.5,236.41,1.0]
[1738182491574,33.86275519,236.42,236.33,1.0]
[1738182491869,20.0,236.5,236.41,1.0]
[1738182492074,20.0,236.5,236.36,1.0]
[1738182492251,20.0,236.5,236.31,4.2615]
[1738182492252,24.278844,236.48,236.31,1.03]
[1738182492447,20.0,236.44,236.33,1.0]
[1738182492648,20.0,236.44,236.37,1.0]
[1738182492858,33.86275519,236.38,236.36,1.0]
[1738182493062,20.0,236.44,236.31,33.89275519]
[1738182493063,33.86275519,236.44,236.41,1.0]
[1738182493352,20.0,236.39,236.31,1.03]
[1738182493670,33.86275519,236.32,236.31,0.03]
[1738182494394,33.86275519,236.32,236.2,0.03]
[1738182494551,33.86275519,236.21,236.2,0.03]
[1738182495148,33.86275519,236.21,236.06,1.0]
[1738182495149,20.0,236.17,236.06,1.0]
[1738182495457,20.0,236.04,235.96,1.0]
[1738182495775,33.86275519,235.97,235.93,1.0]
[1738182495949,33.86275519,235.96,235.95,1.0]
[1738182496152,1.0,236.1,236.08,1.0]
[1738182496464,1.0,236.19,236.06,1.0]
[1738182496771,1.0,236.21,236.16,1.0]
[1738182496960,1.3,236.31,236.26,1.0]
[1738182497279,33.86275519,236.27,236.16,1.0]
[1738182497483,33.86275519,236.22,236.21,1.0]
[1738182497670,33.86275519,236.22,236.14,1.0]
[1738182497863,33.86275519,236.28,236.24,1.0]
[1738182498063,33.86275519,236.28,236.26,1.0]
[1738182498678,33.86275519,236.28,236.24,1.0]
[1738182498867,33.86275519,236.35,236.31,1.0]
[1738182499183,33.86275519,236.33,236.29,1.0]
[1738182499366,33.86275519,236.33,236.08,10.5891]
[1738182499367,33.86275519,236.33,236.32,1.0]
[1738182499563,33.86275519,236.33,236.28,1.0]
[1738182499753,33.86275519,236.33,236.32,1.0]
[1738182499960,33.86275519,236.37,236.34,1.0]
[1738182500260,20.0,236.32,236.26,1.0]
[1738182500466,33.86275519,236.27,236.26,1.0]
[1738182500660,33.86275519,236.31,236.26,1.0]
[1738182500878,33.86275519,236.31,236.28,1.0]
[1738182501079,33.86275519,236.37,236.34,1.0]
[1738182501281,33.86275519,236.37,236.36,1.0]
[1738182501487,20.0,236.34,236.32,1.0]
[1738182501678,20.0,236.34,236.26,33.86275519]
[1738182501679,33.86275519,236.37,236.36,1.0]
[1738182501865,33.86275519,236.39,236.36,1.0]
[1738182502390,2.1135,236.57,236.49,1.0]
[1738182502598,2.1135,236.57,236.31,0.63471008]
[1738182502599,33.86275519,236.54,236.51,1.0]
[1738182502897,20.0,236.52,236.51,1.0]
[1738182503101,20.0,236.52,236.35,10.5774]
[1738182503102,33.86275519,236.58,236.53,1.0]
[1738182503264,16.4205,236.74,236.4,33.86275519]
[1738182503265,33.86275519,236.62,236.55,1.0]
[1738182503473,33.86275519,236.62,236.6,1.0]
[1738182503769,33.86275519,236.64,236.6,1.0]
[1738182504010,2.1125,236.69,236.56,33.86275519]
[1738182504011,33.86275519,236.73,236.72,1.0]
[1738182504275,8.0582,236.86,236.74,1.0]
[1738182504276,20.0,236.78,236.74,1.0]
[1738182504507,20.0,236.78,236.76,1.0]
[1738182504797,2.1113,236.82,236.76,1.0]
[1738182504971,1.0,236.91,236.62,0.63372533]
[1738182504972,2.1104,236.92,236.8,1.0]
[1738182505156,33.86275519,236.81,236.78,1.0]
[1738182505481,33.86275519,236.83,236.8,1.0]
[1738182505688,33.86275519,236.81,236.74,1.0]
[1738182505891,2.1104,236.92,236.81,1.0]
[1738182506092,2.1104,236.92,236.85,1.0]
[1738182506295,2.1098,236.98,236.91,1.0]
[1738182506485,2.1098,236.98,236.96,1.0]
[1738182506690,2.1087,237.11,237.03,1.0]
[1738182506993,6.2708,237.16,237.03,1.0]
[1738182507196,33.86275519,237.07,237.03,1.0]
[1738182507505,33.86275519,237.05,237.01,1.0]
[1738182507683,33.86275519,237.01,236.92,1.0]
[1738182507878,33.86275519,236.96,236.92,1.0]
[1738182508076,33.86275519,237.02,236.94,1.0]
[1738182508280,33.86275519,237.04,237.01,1.0]
[1738182508588,33.86275519,237.02,236.94,1.0]
[1738182508772,33.86275519,236.99,236.94,1.0]
[1738182509299,33.86275519,236.97,236.96,1.0]
[1738182509464,20.0,236.96,236.92,1.0]
[1738182509667,20.0,236.96,236.95,1.0]
[1738182509867,33.86275519,237.05,237.01,1.0]
[1738182510070,33.86275519,237.09,237.08,1.0]
[1738182510498,33.86275519,237.09,237.05,1.0]
[1738182510703,0.37647,237.08,237.01,1.0]
[1738182510883,0.37647,237.08,236.86,1.0]
[1738182510884,20.0,236.99,236.94,1.0]
[1738182511203,20.0,236.92,236.9,1.0]
[1738182511545,2.1089,237.08,237.04,1.0]
[1738182511707,2.1089,237.08,237.03,1.0]
[1738182511877,24.153354,237.07,237.03,1.0]
[1738182512074,44.153354,237.04,237.03,1.0]
[1738182512273,20.0,237.0,236.99,1.0]
[1738182512612,33.86275519,237.02,237.01,1.0]
[1738182513506,33.86275519,237.04,237.03,1.0]
[1738182513682,33.86275519,237.06,237.05,1.0]
[1738182514981,33.86275519,237.06,237.03,1.0]
[1738182514982,20.0,237.04,237.03,1.0]
[1738182515281,33.86275519,237.08,237.05,1.0]
[1738182515478,33.86275519,237.14,237.13,1.0]
[1738182515699,33.86275519,237.16,237.13,1.0]
[1738182515880,33.86275519,237.16,237.15,1.0]
[1738182516078,20.0,237.13,237.12,1.0]
[1738182516290,53.86275519,237.13,237.12,1.0]
[1738182516510,33.86275519,237.13,237.12,1.0]
[1738182516876,33.86275519,237.16,237.12,1.0]
[1738182517212,0.03,237.18,237.17,1.0]
[1738182517519,33.89275519,237.18,237.17,1.0]
[1738182519305,33.89275519,237.18,237.13,1.0]
[1738182519306,20.0,237.15,237.13,1.0]
[1738182519480,20.0,237.12,237.11,1.0]
[1738182519807,33.86275519,237.12,237.08,1.0]
[1738182519991,33.86275519,237.09,237.08,1.0]
[1738182520405,20.0,237.06,237.03,1.0]
[1738182520584,20.0,237.01,236.99,1.0]
[1738182520784,33.86275519,237.0,236.95,1.0]
[1738182520996,33.86275519,236.95,236.93,1.0]
[1738182521200,33.86275519,236.94,236.82,6.5334]
[1738182521381,33.86275519,236.89,236.82,6.5334]
[1738182521584,33.86275519,236.89,236.8,33.86275519]
[1738182521791,33.86275519,236.85,236.76,33.86275519]
[1738182522680,33.86275519,236.78,236.7,4.2246]
[1738182522879,33.86275519,236.76,236.66,38.72181321]
[1738182523097,33.86275519,236.76,236.66,34.49641321]
[1738182523302,33.86275519,236.68,236.6,34.49645421]
[1738182523603,33.86275519,236.64,236.56,33.86275519]
[1738182523786,33.86275519,236.61,236.52,33.86275519]
[1738182523986,33.86275519,236.63,236.54,33.86275519]
[1738182524203,33.86275519,236.57,236.48,33.86275519]
[1738182524583,33.86275519,236.52,236.42,33.86275519]
[1738182524780,33.86275519,236.58,236.48,33.86275519]
[1738182524985,33.86275519,236.58,236.42,4.2295]
[1738182524986,20.0,236.61,236.41,0.63424416]
[1738182525180,1.0,236.77,236.49,1.0]
[1738182525380,1.0,236.79,236.5,1.63409078]
[1738182525581,2.1111,236.84,236.63,1.0]
[1738182525783,2.1111,236.84,236.64,0.63384917]
[1738182526006,33.86275519,236.72,236.63,33.86275519]
[1738182526205,33.86275519,236.76,236.65,33.86275519]
[1738182526379,7.3889,236.84,236.71,33.86275519]
[1738182526380,33.86275519,236.8,236.71,33.86275519]
[1738182526583,33.86275519,236.83,236.73,33.86275519]
[1738182526808,33.86275519,236.87,236.77,33.86275519]
[1738182527003,33.86275519,236.87,236.69,2.0]
[1738182527004,33.86275519,236.89,236.81,33.86275519]
[1738182527208,33.86275519,236.89,236.79,33.86275519]
[1738182527512,33.86275519,236.91,236.81,33.86275519]
[1738182527718,33.86275519,236.89,236.79,33.86275519]
[1738182527883,33.86275519,236.95,236.87,33.86275519]
[1738182528213,5.46,237.1,236.87,33.86275519]
[1738182528214,33.86275519,236.97,236.87,33.86275519]
[1738182528384,33.86275519,236.92,236.83,33.86275519]
[1738182528589,33.86275519,236.89,236.8,33.86275519]
[1738182528887,33.86275519,236.91,236.8,33.86275519]
[1738182529098,33.86275519,236.93,236.81,1.0]
[1738182529292,33.86275519,236.96,236.86,33.86275519]
[1738182530000,33.86275519,236.98,236.88,33.86275519]
[1738182530415,33.86275519,236.96,236.86,33.86275519]
[1738182531201,35.97275519,236.96,236.86,33.86275519]
[1738182531435,33.86275519,236.98,236.88,33.86275519]
[1738182531814,1.66867164,237.09,236.9,33.86275519]
[1738182531815,33.86275519,237.02,236.9,33.86275519]
[1738182532128,33.86275519,237.02,236.86,1.0]
[1738182532129,33.86275519,237.04,236.94,33.86275519]
[1738182532321,33.86275519,236.97,236.87,33.86275519]
[1738182532511,33.86275519,236.95,236.85,33.86275519]
[1738182533113,33.86275519,236.95,236.8,1.0]
[1738182533312,33.86275519,236.91,236.81,33.86275519]
[1738182534221,33.86275519,236.93,236.83,33.86275519]
[1738182534916,0.12549,236.92,236.83,33.86275519]
[1738182535108,33.86275519,236.93,236.83,33.86275519]
[1738182535323,35.97265519,236.98,236.87,33.86275519]
[1738182535526,33.86275519,236.98,236.89,33.86275519]
[1738182535828,33.86275519,237.0,236.89,33.86275519]
[1738182536544,0.12549,236.99,236.89,33.86275519]
[1738182536725,33.86275519,236.96,236.85,33.86275519]
[1738182536928,33.86275519,236.92,236.83,33.86275519]
[1738182537442,33.86275519,236.92,236.77,1.63321642]
[1738182537443,33.86275519,236.92,236.81,33.86275519]
[1738182537629,33.86275519,236.9,236.81,33.86275519]
[1738182537931,33.86275519,236.92,236.81,33.86275519]
[1738182538303,33.86275519,236.9,236.81,33.86275519]
[1738182538505,33.86275519,236.92,236.83,33.86275519]
[1738182538728,2.1102,236.94,236.85,33.86275519]
[1738182538923,2.1102,236.94,236.79,0.63333286]
[1738182538924,33.86275519,236.93,236.83,33.86275519]
[1738182539101,33.86275519,236.91,236.83,33.86275519]
[1738182539306,33.86275519,236.89,236.79,33.86275519]
[1738182539507,33.86275519,236.87,236.77,33.86275519]
[1738182539734,33.86275519,236.85,236.75,33.86275519]
[1738182540338,0.12549,236.82,236.67,1.0]
[1738182540545,33.86275519,236.74,236.64,33.86275519]
[1738182540833,33.86275519,236.66,236.56,33.86275519]
[1738182541125,33.86275519,236.62,236.54,33.86275519]
[1738182541327,33.86275519,236.62,236.51,4.2281]
[1738182541570,33.86275519,236.58,236.48,33.86275519]
[1738182541709,20.0,236.48,236.47,0.063]
[1738182541915,33.86275519,236.48,236.47,0.063]
[1738182542110,1.0,236.63,236.47,0.063]
[1738182542317,1.65217719,236.65,236.49,1.0]
[1738182542523,1.0,236.79,236.47,4.2917]
[1738182542720,7.3929,236.71,236.48,4.86283822]
[1738182542928,24.278844,236.7,236.48,4.86283822]
[1738182543112,24.278844,236.7,236.49,0.63421569]
[1738182543319,20.0,236.67,236.49,0.63421569]
[1738182543520,33.86275519,236.62,236.52,33.86275519]
[1738182543722,33.86275519,236.66,236.56,33.86275519]
[1738182543916,7.3929,236.71,236.47,0.063]
[1738182543917,33.86275519,236.58,236.47,0.063]
[1738182544125,33.86275519,236.58,236.48,33.86275519]
[1738182544332,0.12549,236.63,236.47,0.69734242]
[1738182544532,33.86275519,236.61,236.51,33.86275519]
[1738182544712,0.37647,236.67,236.56,33.86275519]
[1738182544713,33.86275519,236.66,236.56,33.86275519]
[1738182544918,33.86275519,236.64,236.54,33.86275519]
[1738182545118,33.86275519,236.6,236.5,33.86275519]
[1738182545523,2.1126,236.67,236.58,33.86275519]
[1738182545727,2.1121,236.73,236.64,33.86275519]
[1738182545925,20.86145733,236.74,236.68,33.86275519]
[1738182546143,20.86145733,236.74,236.66,33.86275519]
[1738182546336,20.0,236.71,236.6,33.86275519]
[1738182546652,33.86275519,236.61,236.51,33.86275519]
[1738182546817,33.86275519,236.61,236.51,38.09075519]
[1738182547022,33.86275519,236.65,236.55,33.86275519]
[1738182547223,33.86275519,236.71,236.61,33.86275519]
[1738182547417,2.1121,236.73,236.65,33.86275519]
[1738182547614,33.86275519,236.71,236.63,33.86275519]
[1738182547865,33.86275519,236.71,236.61,33.86275519]
[1738182548027,33.86275519,236.73,236.63,33.86275519]
[1738182548649,20.86145733,236.74,236.65,33.86275519]
[1738182548838,33.86275519,236.8,236.71,33.86275519]
[1738182549163,33.86275519,236.73,236.6,33.86275519]
[1738182549326,33.86275519,236.69,236.6,33.86275519]
[1738182549721,33.86275519,236.69,236.58,33.86275519]
[1738182549956,33.86275519,236.65,236.56,33.86275519]
[1738182550156,33.86275519,236.65,236.49,6.0859]
[1738182550157,33.86275519,236.63,236.54,33.86275519]
[1738182550348,33.86275519,236.61,236.51,4.228]
[1738182550663,33.86275519,236.68,236.58,33.86275519]
[1738182550829,20.0,236.69,236.54,33.86275519]
[1738182551022,33.86275519,236.62,236.54,33.86275519]
[1738182551417,33.86275519,236.66,236.56,33.86275519]
[1738182551617,33.86275519,236.68,236.58,33.86275519]
[1738182551919,33.86275519,236.76,236.66,33.86275519]
[1738182552126,33.86275519,236.8,236.7,33.86275519]
[1738182552333,33.86275519,236.78,236.7,33.86275519]
[1738182552641,33.86275519,236.82,236.74,33.86275519]
[1738182552850,35.97365519,236.86,236.76,33.86275519]
[1738182553055,33.86275519,236.92,236.82,33.86275519]
[1738182553263,33.86275519,236.94,236.84,33.86275519]
[1738182553749,33.86275519,236.88,236.8,33.86275519]
[1738182553951,33.86275519,236.88,236.78,33.86275519]
[1738182554149,33.86275519,236.9,236.82,33.86275519]
[1738182554362,33.86275519,236.87,236.77,33.86275519]
[1738182554859,2.1113,236.81,236.73,33.86275519]
[1738182555057,2.1113,236.81,236.63,7.011]
[1738182555058,33.86275519,236.8,236.71,33.86275519]
[1738182555633,33.86275519,236.78,236.67,33.86275519]
[1738182555853,33.86275519,236.78,236.69,33.86275519]
[1738182556238,33.86275519,236.76,236.67,33.86275519]
[1738182556541,33.86275519,236.8,236.71,33.86275519]
[1738182556750,33.86275519,236.82,236.73,33.86275519]
[1738182557048,35.97385519,236.84,236.75,33.86275519]
[1738182557256,35.97355519,236.88,236.79,33.86275519]
[1738182557638,33.86275519,236.82,236.73,33.86275519]
[1738182558057,33.86275519,236.84,236.75,33.86275519]
[1738182558637,35.97355519,236.88,236.77,33.86275519]
[1738182559250,35.97355519,236.88,236.79,33.86275519]
[1738182559576,33.86275519,236.8,236.67,33.86275519]
[1738182559735,33.86275519,236.77,236.67,33.86275519]
[1738182559937,33.86275519,236.79,236.69,33.86275519]
[1738182560345,0.37647,236.76,236.56,0.63374348]
[1738182560547,33.86275519,236.68,236.58,33.86275519]
[1738182560863,2.1126,236.67,236.6,33.86275519]
[1738182561040,33.86275519,236.66,236.56,33.86275519]
[1738182561376,33.86275519,236.6,236.5,33.86275519]
[1738182561583,33.86275519,236.6,236.52,33.86275519]
[1738182561874,35.97535519,236.67,236.58,33.86275519]
[1738182562042,2.1125,236.69,236.62,33.86275519]
[1738182562237,35.97525519,236.69,236.6,33.86275519]
[1738182562638,2.1125,236.69,236.62,33.86275519]
[1738182563368,33.86275519,236.71,236.64,33.86275519]
[1738182563369,2.1123,236.71,236.64,33.86275519]
[1738182563548,33.86275519,236.67,236.56,33.86275519]
[1738182563746,33.86275519,236.65,236.56,33.86275519]
[1738182563953,33.86275519,236.63,236.54,33.86275519]
[1738182564150,33.86275519,236.61,236.5,33.86275519]
[1738182564341,33.86275519,236.54,236.47,0.063]
[1738182564543,33.86275519,236.48,236.47,0.063]
[1738182564856,7.3938,236.68,236.47,0.063]
[1738182565053,7.3938,236.68,236.47,5.92587404]
[1738182565254,2.1125,236.68,236.49,1.0]
[1738182565463,2.1125,236.68,236.5,0.63403747]
[1738182565970,4.925875,236.7,236.64,33.86275519]
[1738182566261,38.15445519,236.81,236.68,33.86275519]
[1738182566461,4.2917,236.81,236.76,33.86275519]
[1738182566662,33.86275519,236.82,236.69,0.63362695]
[1738182566847,9.19302469,236.89,236.65,0.63361379]
[1738182566848,20.12549,236.84,236.65,0.63361379]
[1738182567049,20.12549,236.84,236.65,4.85911379]
[1738182567050,2.1112,236.83,236.65,4.85911379]
[1738182567470,20.0,236.8,236.61,4.2262]
[1738182567672,0.12549,236.75,236.6,0.63378152]
[1738182567853,33.86275519,236.7,236.61,33.86275519]
[1738182568059,33.86275519,236.68,236.59,33.86275519]
[1738182568266,33.86275519,236.75,236.65,33.86275519]
[1738182568958,33.86275519,236.75,236.61,33.86275519]
[1738182568959,33.86275519,236.7,236.61,33.86275519]
[1738182569158,33.86275519,236.72,236.63,33.86275519]
[1738182569371,33.86275519,236.66,236.57,33.86275519]
[1738182569575,33.86275519,236.68,236.59,33.86275519]
[1738182569865,1.67358407,236.8,236.6,0.63396252]
[1738182570073,5.2777,236.85,236.6,0.63396252]
[1738182570272,0.12549,236.79,236.6,0.63396252]
[1738182570469,20.0,236.77,236.6,0.63396252]
[1738182570871,33.86275519,236.71,236.62,33.86275519]
[1738182571077,33.86275519,236.69,236.6,33.86275519]
[1738182571275,0.12549,236.59,236.52,0.063]
[1738182571448,24.153354,236.62,236.52,0.063]
[1738182571449,33.86275519,236.54,236.52,0.063]
[1738182571654,33.86275519,236.6,236.52,0.063]
[1738182571873,1.68374272,236.72,236.52,4.2908]
[1738182572173,0.12549,236.75,236.53,0.63396038]
[1738182572370,0.37647,236.75,236.53,1.63396038]
[1738182572576,0.37647,236.75,236.53,0.63396038]
[1738182572869,0.37647,236.75,236.65,33.86275519]
[1738182572870,33.86275519,236.75,236.65,33.86275519]
[1738182573275,33.86275519,236.79,236.69,33.86275519]
[1738182573450,33.86275519,236.81,236.71,33.86275519]
[1738182573863,33.86275519,236.79,236.69,33.86275519]
[1738182574160,33.86275519,236.75,236.65,33.86275519]
[1738182574361,33.86275519,236.75,236.58,0.75913393]
[1738182574362,33.86275519,236.69,236.6,33.86275519]
[1738182574674,33.86275519,236.65,236.56,38.08995519]
[1738182574877,0.12549,236.71,236.54,33.86275519]
[1738182575060,33.86275519,236.61,236.52,38.15365519]
[1738182575266,33.86275519,236.58,236.52,0.063]
[1738182575469,33.86275519,236.54,236.52,0.063]
[1738182575857,0.12549,236.53,236.52,0.063]
[1738182576069,33.86275519,236.54,236.52,0.063]
[1738182576582,58.14159919,236.53,236.47,0.063]
[1738182576759,33.98824519,236.48,236.47,0.063]
[1738182576957,33.98824519,236.48,236.33,33.86275519]
[1738182576958,0.37647,236.47,236.33,33.86275519]
[1738182577161,33.86275519,236.51,236.42,33.86275519]
[1738182577356,1.0,236.66,236.46,33.86275519]
[1738182577357,1.7261191,236.59,236.46,33.86275519]
[1738182577552,20.86539141,236.7,236.39,0.12549]
[1738182577756,33.86275519,236.6,236.5,33.86275519]
[1738182578075,33.86275519,236.64,236.54,33.86275519]
[1738182578254,33.86275519,236.6,236.5,33.86275519]
[1738182578460,33.86275519,236.58,236.5,33.86275519]
[1738182579278,33.86275519,236.56,236.46,33.86275519]
[1738182579454,33.86275519,236.53,236.44,33.86275519]
[1738182579662,33.86275519,236.55,236.47,33.86275519]
[1738182579856,33.86275519,236.6,236.51,33.86275519]
[1738182580079,33.86275519,236.64,236.55,33.86275519]
[1738182580265,33.86275519,236.68,236.59,33.86275519]
[1738182580466,33.86275519,236.74,236.63,33.86275519]
[1738182580679,1.6346,236.86,236.67,33.86275519]
[1738182580680,33.86275519,236.76,236.67,33.86275519]
[1738182580861,33.86275519,236.74,236.65,33.86275519]
[1738182581060,33.86275519,236.74,236.66,4.2254]
[1738182581266,33.86275519,236.76,236.67,33.86275519]
[1738182581476,33.86275519,236.74,236.63,33.86275519]
[1738182581680,33.86275519,236.74,236.65,33.86275519]
[1738182581884,18.58501811,236.85,236.69,33.86275519]
[1738182581885,33.86275519,236.78,236.69,33.86275519]
[1738182582362,33.86275519,236.78,236.64,0.63371394]
[1738182582363,33.86275519,236.76,236.67,33.86275519]
[1738182582565,33.86275519,236.72,236.63,38.08865519]
[1738182582875,33.86275519,236.74,236.65,33.86275519]
[1738182583069,33.86275519,236.74,236.66,4.2254]
[1738182583267,33.86275519,236.72,236.63,33.86275519]
[1738182583470,33.86275519,236.72,236.64,4.2257]
[1738182583667,33.86275519,236.76,236.67,33.86275519]
[1738182583904,33.86275519,236.76,236.64,15.42402683]
[1738182583905,33.86275519,236.72,236.64,4.2257]
[1738182584069,33.86275519,236.68,236.62,4.2261]
[1738182584470,33.86275519,236.66,236.57,33.86275519]
[1738182584783,33.86275519,236.7,236.59,33.86275519]
[1738182584985,33.86275519,236.76,236.6,0.63390579]
[1738182585166,33.86275519,236.61,236.52,4.2279]
[1738182585590,33.86275519,236.65,236.55,33.86275519]
[1738182585787,33.86275519,236.67,236.57,33.86275519]
[1738182586178,33.86275519,236.69,236.59,33.86275519]
[1738182586571,33.86275519,236.71,236.61,33.86275519]
[1738182586779,33.86275519,236.71,236.62,0.63384418]
[1738182586980,33.86275519,236.63,236.53,33.86275519]
[1738182587190,33.86275519,236.69,236.59,33.86275519]
[1738182587388,0.63384418,236.68,236.59,33.86275519]
[1738182587589,33.86275519,236.71,236.61,33.86275519]
[1738182587764,0.63384418,236.7,236.61,33.86275519]
[1738182587965,26.3161445,236.85,236.61,33.86275519]
[1738182587966,33.86275519,236.73,236.62,0.63384072]
[1738182588168,33.86275519,236.71,236.61,33.86275519]
[1738182588370,0.63384418,236.7,236.61,33.86275519]
[1738182588795,33.86275519,236.75,236.65,33.86275519]
[1738182588992,0.63384418,236.74,236.66,33.86275519]
[1738182589198,33.86275519,236.7,236.62,33.86275519]
[1738182589405,0.63384418,236.69,236.62,33.86275519]
[1738182589568,0.63384418,236.69,236.6,33.86275519]
[1738182589875,33.86275519,236.66,236.56,33.86275519]
[1738182590076,33.86275519,236.57,236.49,4.2285]
[1738182590287,33.86275519,236.55,236.49,4.2285]
[1738182590491,33.86275519,236.64,236.48,0.063]
[1738182590492,33.86275519,236.53,236.48,0.063]
[1738182590691,33.86275519,236.55,236.48,4.2916]
[1738182590879,33.86275519,236.57,236.48,38.15435519]
[1738182591083,0.63384418,236.56,236.48,38.15435519]
[1738182591273,0.63384418,236.56,236.48,4.2916]
[1738182591472,33.86275519,236.55,236.48,4.2916]
[1738182591812,0.63384418,236.54,236.49,4.2915]
[1738182592092,33.86275519,236.57,236.49,4.2915]
[1738182592289,0.63384418,236.56,236.49,4.2915]
[1738182592595,0.63384418,236.56,236.49,0.063]
[1738182592791,33.86275519,236.51,236.49,0.063]
[1738182592989,0.63384418,236.5,236.48,0.063]
[1738182593178,33.86275519,236.4,236.34,6.23962537]
[1738182593378,33.86275519,236.46,236.35,38.72842804]
[1738182593577,0.63384418,236.45,236.35,15.44317285]
[1738182593797,33.86275519,236.48,236.38,33.86275519]
[1738182594113,33.86275519,236.46,236.36,33.86275519]
[1738182594269,33.86275519,236.42,236.35,4.231]
[1738182594479,33.86275519,236.4,236.35,4.231]
[1738182594777,0.63384418,236.39,236.31,4.2317]
[1738182594976,33.86275519,236.44,236.32,34.49742087]
[1738182595277,33.86275519,236.48,236.38,33.86275519]
[1738182595593,0.63384418,236.51,236.38,33.86275519]
[1738182595594,33.86275519,236.56,236.47,33.86275519]
[1738182595807,33.86275519,236.54,236.41,0.63434471]
[1738182596108,33.86275519,236.52,236.41,0.63434471]
[1738182596399,0.63384418,236.51,236.43,33.86275519]
[1738182596777,33.86275519,236.48,236.41,4.2299]
[1738182596974,33.86275519,236.5,236.41,38.09265519]
[1738182597206,33.86275519,236.54,236.43,33.86275519]
[1738182597390,33.86275519,236.48,236.47,0.2552]
[1738182597696,33.86275519,236.5,236.47,0.2552]
[1738182597875,0.63384418,236.49,236.47,0.2552]
[1738182598077,0.63384418,236.53,236.47,0.2552]
[1738182598408,33.86275519,236.5,236.47,0.2552]
[1738182598701,0.63384418,236.49,236.47,0.2552]
[1738182599090,0.63384418,236.49,236.47,1e-08]
[1738182599091,33.86275519,236.48,236.47,1e-08]
[1738182599297,58.14159919,236.48,236.47,1e-08]
[1738182599804,33.86275519,236.48,236.47,1e-08]
[1738182600302,1.70114568,236.51,236.47,4.22880001]
[1738182600503,1.70114568,236.51,236.5,33.86275519]
[1738182600709,0.63384418,236.59,236.5,33.86275519]
[1738182600916,0.63384418,236.63,236.57,33.86275519]
[1738182601211,0.63384418,236.63,236.51,15.43254097]
[1738182601212,0.63384418,236.67,236.58,0.6339817]
[1738182601399,0.63384418,236.66,236.51,14.7984]
[1738182601691,0.63384418,236.66,236.47,10.57210001]
[1738182601692,20.0,236.62,236.47,10.57210001]
[1738182601881,0.12549,236.59,236.49,4.2283]
[1738182602080,24.153354,236.65,236.49,4.2283]
[1738182602081,0.63384418,236.58,236.5,0.63434327]
[1738182602397,34.49659937,236.7,236.57,33.86275519]
[1738182602581,0.63384418,236.69,236.61,33.86275519]
[1738182602785,0.66384418,236.71,236.64,4.2258]
[1738182603625,0.66384418,236.71,236.61,33.86275519]
[1738182603795,0.66384418,236.71,236.5,33.86275519]
[1738182603796,33.86275519,236.62,236.5,33.86275519]
[1738182604124,33.86275519,236.53,236.47,1e-08]
[1738182604278,0.63384418,236.52,236.47,1e-08]
[1738182604475,23.776884,236.5,236.47,1e-08]
[1738182604704,24.278844,236.48,236.47,1e-08]
[1738182604915,20.0,236.45,236.3,4.2318]
[1738182605083,33.86275519,236.36,236.26,38.09535519]
[1738182605282,0.63384418,236.35,236.26,38.09535519]
[1738182605503,0.63384418,236.35,236.24,38.09565519]
[1738182605504,33.86275519,236.32,236.24,38.09565519]
[1738182605708,0.63384418,236.31,236.25,4.2956]
[1738182606028,33.86275519,236.4,236.25,4.2956]